[Event "*** Titled Tuesday Blitz"]
[Site "Chess.com"]
[Date "2019.03.05"]
[Round "6"]
[White "NateSolon"]
[Black "shrek4life02"]
[Result "0-1"]
[WhiteElo "2544"]
[BlackElo "2405"]
[TimeControl "180+2"]
[EndTime "14:20:59 PST"]
[Termination "shrek4life02 won by resignation"]

1. d4 {[%clk 0:03:01.9]} 1... Nf6 {[%clk 0:03:00.1]} 2. Nf3 {[%clk 0:03:02.4]}
2... g6 {[%clk 0:03:01.1]} 3. g3 {[%clk 0:03:03.7]} 3... Bg7 {[%clk 0:03:02.2]}
4. Bg2 {[%clk 0:03:05]} 4... O-O {[%clk 0:03:03.9]} 5. O-O {[%clk 0:03:06.1]}
5... d5 {[%clk 0:03:05.6]} 6. c4 {[%clk 0:03:06.4]} 6... c6 {[%clk 0:03:04.7]}
7. Qb3 {[%clk 0:03:05.9]} 7... Qb6 {[%clk 0:03:03.5]} 8. Nc3 {[%clk 0:03:01.8]}
8... Be6 {[%clk 0:03:00.5]} 9. c5 {[%clk 0:02:57.7]} 9... Qxb3 {[%clk
0:02:59.3]} 10. axb3 {[%clk 0:02:59.6]} 10... Nbd7 {[%clk 0:02:58.6]} 11. b4
{[%clk 0:02:59.3]} 11... a6 {[%clk 0:02:58.8]} 12. h3 {[%clk 0:02:39.2]} 12...
Ne4 {[%clk 0:02:55.7]} 13. Nxe4 {[%clk 0:02:25.6]} 13... dxe4 {[%clk 0:02:57.6]}
14. Ng5 {[%clk 0:02:26.8]} 14... Bc4 {[%clk 0:02:44.8]} 15. Be3 {[%clk
0:02:06.6]} 15... f5 {[%clk 0:02:41.2]} 16. Rfe1 {[%clk 0:01:40.5]} 16... h6
{[%clk 0:02:37.7]} 17. Nxe4 {[%clk 0:01:32.1]} 17... fxe4 {[%clk 0:02:38.8]} 18.
Bxe4 {[%clk 0:01:34]} 18... Kh7 {[%clk 0:02:35.1]} 19. Bf4 {[%clk 0:01:28.7]}
19... Nf6 {[%clk 0:02:35.1]} 20. Bc2 {[%clk 0:01:27.8]} 20... Nd5 {[%clk
0:02:35.8]} 0-1

[Event "*** Titled Tuesday Blitz"]
[Site "Chess.com"]
[Date "2019.03.05"]
[Round "6"]
[White "GeorgMeier"]
[Black "alpasya2009"]
[Result "1-0"]
[WhiteElo "2844"]
[BlackElo "2553"]
[TimeControl "180+2"]
[EndTime "14:22:08 PST"]
[Termination "GeorgMeier won by resignation"]

1. Nf3 {[%clk 0:03:01.9]} 1... Nf6 {[%clk 0:02:59.9]} 2. g3 {[%clk 0:03:02.8]}
2... g6 {[%clk 0:03:00.8]} 3. Bg2 {[%clk 0:03:04]} 3... Bg7 {[%clk 0:03:01.7]}
4. d4 {[%clk 0:03:05.1]} 4... O-O {[%clk 0:03:02.2]} 5. O-O {[%clk 0:03:06.2]}
5... d5 {[%clk 0:03:02.8]} 6. c4 {[%clk 0:03:06.8]} 6... c6 {[%clk 0:03:04.2]}
7. cxd5 {[%clk 0:03:07.9]} 7... cxd5 {[%clk 0:03:05.1]} 8. Nc3 {[%clk
0:03:09.8]} 8... Bf5 {[%clk 0:03:06.3]} 9. Ne5 {[%clk 0:03:10]} 9... Ne4 {[%clk
0:03:05.2]} 10. Bf4 {[%clk 0:03:10.1]} 10... Nxc3 {[%clk 0:03:05.3]} 11. bxc3
{[%clk 0:03:11.2]} 11... Nc6 {[%clk 0:03:06.8]} 12. Nxc6 {[%clk 0:03:06.4]}
12... bxc6 {[%clk 0:03:08.2]} 13. Rc1 {[%clk 0:02:41.5]} 13... Rc8 {[%clk
0:03:06.8]} 14. c4 {[%clk 0:02:39.6]} 14... Qd7 {[%clk 0:02:37.6]} 15. e3 {[%clk
0:02:17.6]} 15... h6 {[%clk 0:02:17.1]} 16. h4 {[%clk 0:02:15.2]} 16... Rfd8
{[%clk 0:02:06.1]} 17. Qa4 {[%clk 0:01:57.9]} 17... Be4 {[%clk 0:01:33.4]} 1-0

[Event "*** Titled Tuesday Blitz"]
[Site "Chess.com"]
[Date "2019.03.05"]
[Round "6"]
[White "ENEASZ"]
[Black "jamengrand"]
[Result "1-0"]
[WhiteElo "2373"]
[BlackElo "2166"]
[TimeControl "180+2"]
[EndTime "14:23:05 PST"]
[Termination "ENEASZ won by resignation"]

1. e4 {[%clk 0:02:25.5]} 1... e5 {[%clk 0:02:59.2]} 2. Nf3 {[%clk 0:02:25.3]}
2... Nc6 {[%clk 0:03:00.3]} 3. Bc4 {[%clk 0:02:26]} 3... Nf6 {[%clk 0:03:00.8]}
4. d3 {[%clk 0:02:27.3]} 4... Be7 {[%clk 0:03:01.4]} 5. O-O {[%clk 0:02:28.5]}
5... d6 {[%clk 0:03:01.9]} 6. c3 {[%clk 0:02:29.3]} 6... h6 {[%clk 0:03:02.1]}
7. Re1 {[%clk 0:02:30]} 7... Be6 {[%clk 0:03:00.9]} 8. Bxe6 {[%clk 0:02:29.2]}
8... fxe6 {[%clk 0:03:01.8]} 9. d4 {[%clk 0:02:31.1]} 9... O-O {[%clk
0:02:56.9]} 10. Qb3 {[%clk 0:02:20.1]} 10... Qd7 {[%clk 0:02:54.4]} 11. dxe5
{[%clk 0:02:19]} 11... Nxe5 {[%clk 0:02:54.2]} 12. Nxe5 {[%clk 0:02:19.3]} 12...
dxe5 {[%clk 0:02:55.4]} 13. Qxb7 {[%clk 0:02:19.7]} 13... Bc5 {[%clk 0:02:50.6]}
14. h3 {[%clk 0:02:01]} 14... Nxe4 {[%clk 0:02:41.3]} 15. Qxe4 {[%clk
0:01:59.6]} 15... Bxf2+ {[%clk 0:02:40.8]} 16. Kh2 {[%clk 0:02:00.4]} 16... Bxe1
{[%clk 0:02:37.3]} 17. Qxe1 {[%clk 0:02:02.3]} 17... e4 {[%clk 0:02:34.7]} 18.
Be3 {[%clk 0:02:00.6]} 18... Qd6+ {[%clk 0:02:35.4]} 19. Kg1 {[%clk 0:02:00.4]}
19... Rab8 {[%clk 0:02:31.5]} 20. b3 {[%clk 0:02:00.8]} 20... Qd3 {[%clk
0:02:29.3]} 21. Na3 {[%clk 0:01:47.3]} 21... Rbd8 {[%clk 0:02:24.4]} 22. Nc4
{[%clk 0:01:45.8]} 22... Rf5 {[%clk 0:02:22.8]} 23. Bxa7 {[%clk 0:01:44.4]}
23... c5 {[%clk 0:02:21.2]} 24. Ne3 {[%clk 0:01:40.6]} 24... Rg5 {[%clk
0:02:09.9]} 25. Rd1 {[%clk 0:01:36]} 25... Qxe3+ {[%clk 0:02:02.8]} 26. Qxe3
{[%clk 0:01:37.9]} 26... Rxd1+ {[%clk 0:02:03.6]} 27. Kh2 {[%clk 0:01:38.2]}
27... Re5 {[%clk 0:01:41.6]} 28. Bb8 {[%clk 0:01:26.5]} 28... Rd3 {[%clk
0:01:39.4]} 29. Qe2 {[%clk 0:01:23.6]} 29... Rf5 {[%clk 0:01:32.5]} 30. Qxe4
{[%clk 0:01:21.3]} 30... Rxc3 {[%clk 0:01:33.6]} 31. Qxe6+ {[%clk 0:01:17.2]}
31... Rf7 {[%clk 0:01:34.7]} 32. Bd6 {[%clk 0:01:18.4]} 1-0

[Event "*** Titled Tuesday Blitz"]
[Site "Chess.com"]
[Date "2019.03.05"]
[Round "6"]
[White "Romn69"]
[Black "VeraNebolsina"]
[Result "0-1"]
[WhiteElo "2231"]
[BlackElo "2348"]
[TimeControl "180+2"]
[EndTime "14:23:07 PST"]
[Termination "VeraNebolsina won by resignation"]

1. d4 {[%clk 0:03:01.9]} 1... Nf6 {[%clk 0:03:00.1]} 2. Nf3 {[%clk 0:03:01.6]}
2... g6 {[%clk 0:02:57.9]} 3. c4 {[%clk 0:03:01.7]} 3... Bg7 {[%clk 0:02:58.1]}
4. Nc3 {[%clk 0:03:02.5]} 4... d5 {[%clk 0:02:59.3]} 5. cxd5 {[%clk 0:03:01.2]}
5... Nxd5 {[%clk 0:03:00.4]} 6. Bg5 {[%clk 0:03:01.9]} 6... h6 {[%clk
0:02:56.4]} 7. Bh4 {[%clk 0:03:01]} 7... c5 {[%clk 0:02:49.9]} 8. Rc1 {[%clk
0:03:00.6]} 8... Nxc3 {[%clk 0:02:41]} 9. bxc3 {[%clk 0:03:00.3]} 9... cxd4
{[%clk 0:02:41.9]} 10. cxd4 {[%clk 0:03:00.7]} 10... Qa5+ {[%clk 0:02:34.2]} 11.
Qd2 {[%clk 0:03:00.9]} 11... Qxd2+ {[%clk 0:02:28.7]} 12. Kxd2 {[%clk
0:03:01.4]} 12... Nc6 {[%clk 0:02:28.6]} 13. e3 {[%clk 0:02:59.8]} 13... Be6
{[%clk 0:02:29.1]} 14. a4 {[%clk 0:02:42]} 14... O-O {[%clk 0:02:16]} 15. Bb5
{[%clk 0:02:36.6]} 15... g5 {[%clk 0:02:05]} 16. Bg3 {[%clk 0:02:35.4]} 16...
Na5 {[%clk 0:02:03.6]} 17. Rc7 {[%clk 0:02:28.5]} 17... a6 {[%clk 0:01:54.2]}
18. Bd3 {[%clk 0:02:20.1]} 18... Rfc8 {[%clk 0:01:12]} 19. Rxe7 {[%clk 0:01:43]}
19... b5 {[%clk 0:01:12.1]} 20. axb5 {[%clk 0:01:31.2]} 20... axb5 {[%clk
0:01:13.2]} 21. Rb1 {[%clk 0:01:29]} 21... Nb3+ {[%clk 0:01:12]} 22. Ke2 {[%clk
0:01:22.7]} 22... Nc1+ {[%clk 0:01:09.8]} 23. Kd2 {[%clk 0:01:19.3]} 23... Ra2+
{[%clk 0:01:09]} 0-1

[Event "*** Titled Tuesday Blitz"]
[Site "Chess.com"]
[Date "2019.03.05"]
[Round "6"]
[White "AdrianaNikolova"]
[Black "INLOVEWITHF"]
[Result "1-0"]
[WhiteElo "2438"]
[BlackElo "2284"]
[TimeControl "180+2"]
[EndTime "14:23:33 PST"]
[Termination "AdrianaNikolova won by checkmate"]

1. d4 {[%clk 0:03:01.9]} 1... Nf6 {[%clk 0:02:59.4]} 2. Bf4 {[%clk 0:03:01.8]}
2... g6 {[%clk 0:03:00]} 3. Nc3 {[%clk 0:03:01.3]} 3... c5 {[%clk 0:02:55.8]} 4.
d5 {[%clk 0:03:00.5]} 4... Bg7 {[%clk 0:02:55]} 5. e4 {[%clk 0:03:01.6]} 5... d6
{[%clk 0:02:56]} 6. Qd2 {[%clk 0:03:02.6]} 6... h6 {[%clk 0:02:54.9]} 7. h4
{[%clk 0:03:00.7]} 7... a6 {[%clk 0:02:55.4]} 8. a4 {[%clk 0:03:00.7]} 8... O-O
{[%clk 0:02:54.8]} 9. Bxh6 {[%clk 0:03:00.1]} 9... e6 {[%clk 0:02:47.3]} 10.
Bxg7 {[%clk 0:03:00.4]} 10... Kxg7 {[%clk 0:02:47.9]} 11. dxe6 {[%clk
0:03:01.7]} 11... fxe6 {[%clk 0:02:45.5]} 12. O-O-O {[%clk 0:03:03.6]} 12... b5
{[%clk 0:02:45.7]} 13. Qxd6 {[%clk 0:03:03.5]} 13... Qa5 {[%clk 0:02:38]} 14.
Qe7+ {[%clk 0:02:55.3]} 14... Rf7 {[%clk 0:02:38.6]} 15. Qxc5 {[%clk 0:02:56.7]}
15... Nbd7 {[%clk 0:02:33.7]} 16. Qg5 {[%clk 0:02:55.7]} 16... Nh7 {[%clk
0:02:23.7]} 17. Qe3 {[%clk 0:02:47.3]} 17... b4 {[%clk 0:02:24.5]} 18. Nb1
{[%clk 0:02:41.7]} 18... Qxa4 {[%clk 0:02:24.1]} 19. h5 {[%clk 0:02:42.1]} 19...
g5 {[%clk 0:02:24.4]} 20. h6+ {[%clk 0:02:40.1]} 20... Kh8 {[%clk 0:02:22.1]}
21. Nf3 {[%clk 0:02:42]} 21... Qa5 {[%clk 0:02:08.7]} 22. Bc4 {[%clk 0:02:40.7]}
22... Re7 {[%clk 0:01:55.3]} 23. Rh5 {[%clk 0:02:31.9]} 23... Ndf6 {[%clk
0:01:52.1]} 24. Rxg5 {[%clk 0:02:32.5]} 24... Nxg5 {[%clk 0:01:52.5]} 25. Nxg5
{[%clk 0:02:34.4]} 25... Bb7 {[%clk 0:01:52.5]} 26. e5 {[%clk 0:02:33.4]} 26...
Nd5 {[%clk 0:01:51.7]} 27. Qf3 {[%clk 0:02:15.2]} 27... Qd8 {[%clk 0:01:19.5]}
28. Bxd5 {[%clk 0:02:04.5]} 28... Bxd5 {[%clk 0:01:18.9]} 29. Qf6+ {[%clk
0:02:05.2]} 29... Kg8 {[%clk 0:01:19.6]} 30. h7+ {[%clk 0:01:09.6]} 30... Rxh7
{[%clk 0:01:18.6]} 31. Nxh7 {[%clk 0:01:09.4]} 31... Kxh7 {[%clk 0:01:19]} 32.
Rh1+ {[%clk 0:01:08.2]} 32... Kg8 {[%clk 0:01:16.6]} 33. Rh8# {[%clk 0:01:10.1]}
1-0

[Event "*** Titled Tuesday Blitz"]
[Site "Chess.com"]
[Date "2019.03.05"]
[Round "6"]
[White "Hikaru"]
[Black "Orange_Ghost"]
[Result "1-0"]
[WhiteElo "3131"]
[BlackElo "2558"]
[TimeControl "180+2"]
[EndTime "14:23:38 PST"]
[Termination "Hikaru won by checkmate"]

1. Nf3 {[%clk 0:02:52.9]} 1... Nf6 {[%clk 0:02:58.1]} 2. b3 {[%clk 0:02:44.2]}
2... g6 {[%clk 0:02:57.1]} 3. Bb2 {[%clk 0:02:46.1]} 3... Bg7 {[%clk 0:02:56.1]}
4. d4 {[%clk 0:02:48]} 4... O-O {[%clk 0:02:56.7]} 5. e3 {[%clk 0:02:49.2]} 5...
d5 {[%clk 0:02:57.7]} 6. c4 {[%clk 0:02:49.7]} 6... c6 {[%clk 0:02:58.1]} 7.
Nbd2 {[%clk 0:02:34.1]} 7... b6 {[%clk 0:02:42.9]} 8. Bd3 {[%clk 0:02:33.4]}
8... Bb7 {[%clk 0:02:41.1]} 9. O-O {[%clk 0:02:15.6]} 9... Nbd7 {[%clk
0:02:40.1]} 10. Rc1 {[%clk 0:02:08.1]} 10... Rc8 {[%clk 0:02:37.9]} 11. Qe2
{[%clk 0:02:08.8]} 11... e6 {[%clk 0:02:35.4]} 12. e4 {[%clk 0:02:08.9]} 12...
dxe4 {[%clk 0:02:34.7]} 13. Bxe4 {[%clk 0:02:06.5]} 13... Qc7 {[%clk 0:02:28.4]}
14. c5 {[%clk 0:02:06.5]} 14... Rfd8 {[%clk 0:02:22.9]} 15. b4 {[%clk
0:02:04.2]} 15... Nxe4 {[%clk 0:02:20.5]} 16. Nxe4 {[%clk 0:02:05.1]} 16... Nf6
{[%clk 0:02:15.4]} 17. Nxf6+ {[%clk 0:01:58.3]} 17... Bxf6 {[%clk 0:02:15.7]}
18. d5 {[%clk 0:01:59.8]} 18... Bxb2 {[%clk 0:02:00.8]} 19. d6 {[%clk
0:02:00.4]} 19... Bxc1 {[%clk 0:01:22.1]} 20. dxc7 {[%clk 0:01:59.6]} 20... Rxc7
{[%clk 0:01:23.1]} 21. Rxc1 {[%clk 0:02:00.4]} 21... Rcd7 {[%clk 0:01:22.7]} 22.
h4 {[%clk 0:01:56.8]} 22... Kg7 {[%clk 0:01:20.2]} 23. Ne5 {[%clk 0:01:57.6]}
23... Rd5 {[%clk 0:01:20]} 24. h5 {[%clk 0:01:57.3]} 24... f6 {[%clk 0:01:20]}
25. h6+ {[%clk 0:01:56.1]} 25... Kf8 {[%clk 0:01:20]} 26. Nc4 {[%clk 0:01:56]}
26... Ke7 {[%clk 0:01:18.8]} 27. Nd6 {[%clk 0:01:57.1]} 27... Re5 {[%clk
0:01:19.8]} 28. Qf3 {[%clk 0:01:55.6]} 28... Ba8 {[%clk 0:01:16.7]} 29. Qa3
{[%clk 0:01:56.1]} 29... Rd7 {[%clk 0:01:14.7]} 30. b5 {[%clk 0:01:56.7]} 30...
bxc5 {[%clk 0:01:09.1]} 31. Nc4 {[%clk 0:01:55.8]} 31... Rg5 {[%clk 0:01:08.6]}
32. b6 {[%clk 0:01:55.4]} 32... Rg4 {[%clk 0:00:51.8]} 33. Qxc5+ {[%clk
0:01:55]} 33... Kd8 {[%clk 0:00:28.3]} 34. Qf8# {[%clk 0:01:53.5]} 1-0

[Event "*** Titled Tuesday Blitz"]
[Site "Chess.com"]
[Date "2019.03.05"]
[Round "6"]
[White "SF-96"]
[Black "Barcelona_Guy"]
[Result "0-1"]
[WhiteElo "2572"]
[BlackElo "2732"]
[TimeControl "180+2"]
[EndTime "14:23:42 PST"]
[Termination "Barcelona_Guy won by resignation"]

1. e4 {[%clk 0:03:00.8]} 1... e5 {[%clk 0:03:00.5]} 2. Nf3 {[%clk 0:03:01]} 2...
Nc6 {[%clk 0:02:59.5]} 3. Bb5 {[%clk 0:03:01.7]} 3... a6 {[%clk 0:03:00.4]} 4.
Ba4 {[%clk 0:03:02.8]} 4... b5 {[%clk 0:03:01.9]} 5. Bb3 {[%clk 0:03:03.1]} 5...
g6 {[%clk 0:03:02.9]} 6. d4 {[%clk 0:02:56.1]} 6... exd4 {[%clk 0:03:03.2]} 7.
Bg5 {[%clk 0:02:38]} 7... Be7 {[%clk 0:03:01.8]} 8. Bxe7 {[%clk 0:02:37.6]} 8...
Qxe7 {[%clk 0:03:03.2]} 9. O-O {[%clk 0:02:37.6]} 9... Nf6 {[%clk 0:02:55.4]}
10. e5 {[%clk 0:02:18.7]} 10... Nh5 {[%clk 0:02:16.9]} 11. Nxd4 {[%clk
0:02:02.3]} 11... Nxd4 {[%clk 0:02:17]} 12. Qxd4 {[%clk 0:02:03]} 12... Bb7
{[%clk 0:02:18.6]} 13. a4 {[%clk 0:01:28.5]} 13... c5 {[%clk 0:02:17.1]} 14. Qd2
{[%clk 0:01:26.8]} 14... c4 {[%clk 0:02:17.5]} 15. Ba2 {[%clk 0:01:28]} 15...
O-O {[%clk 0:02:15.5]} 16. Re1 {[%clk 0:01:12.1]} 16... Rad8 {[%clk 0:02:07.8]}
17. Nc3 {[%clk 0:01:10.9]} 17... Qc5 {[%clk 0:02:00.5]} 18. axb5 {[%clk
0:00:56.2]} 18... axb5 {[%clk 0:02:02.4]} 19. Qd6 {[%clk 0:00:56]} 19... Qxd6
{[%clk 0:01:53]} 20. exd6 {[%clk 0:00:57.9]} 20... Bc6 {[%clk 0:01:54.6]} 21.
Re5 {[%clk 0:00:40.3]} 21... Rfe8 {[%clk 0:01:55.6]} 22. Rc5 {[%clk 0:00:35.9]}
22... Ra8 {[%clk 0:01:42.6]} 23. Nxb5 {[%clk 0:00:26.9]} 23... Bxb5 {[%clk
0:01:42]} 24. Rxb5 {[%clk 0:00:28.5]} 24... Rxa2 {[%clk 0:01:42.3]} 25. Rd1
{[%clk 0:00:17.1]} 25... Re6 {[%clk 0:01:33.4]} 26. Rb7 {[%clk 0:00:16]} 26...
Rxd6 {[%clk 0:01:32.6]} 0-1

[Event "*** Titled Tuesday Blitz"]
[Site "Chess.com"]
[Date "2019.03.05"]
[Round "6"]
[White "LawrenceTrent"]
[Black "Msb2"]
[Result "1-0"]
[WhiteElo "2545"]
[BlackElo "2776"]
[TimeControl "180+2"]
[EndTime "14:23:43 PST"]
[Termination "LawrenceTrent won by resignation"]

1. d4 {[%clk 0:03:01.9]} 1... d5 {[%clk 0:03:00.9]} 2. Bg5 {[%clk 0:02:59.6]}
2... f6 {[%clk 0:03:00.9]} 3. Bc1 {[%clk 0:03:00.5]} 3... c5 {[%clk 0:03:00.6]}
4. c4 {[%clk 0:02:49.5]} 4... cxd4 {[%clk 0:02:00.2]} 5. Qxd4 {[%clk 0:02:49]}
5... Nc6 {[%clk 0:01:52.2]} 6. Qxd5 {[%clk 0:02:50.3]} 6... Qxd5 {[%clk
0:01:53.2]} 7. cxd5 {[%clk 0:02:51.6]} 7... Nb4 {[%clk 0:01:55.1]} 8. Na3 {[%clk
0:02:53.3]} 8... Nxd5 {[%clk 0:01:56]} 9. e4 {[%clk 0:02:47.8]} 9... Nb4 {[%clk
0:01:56.2]} 10. Bd2 {[%clk 0:02:49]} 10... e5 {[%clk 0:01:56.6]} 11. Nf3 {[%clk
0:02:17.1]} 11... Bd7 {[%clk 0:01:55.6]} 12. Bc4 {[%clk 0:02:16]} 12... Bd6
{[%clk 0:01:29]} 13. O-O {[%clk 0:02:16.1]} 13... Ne7 {[%clk 0:01:29.2]} 14.
Rfd1 {[%clk 0:02:16.9]} 14... Nec6 {[%clk 0:00:57.8]} 15. Nb5 {[%clk 0:02:13.4]}
15... Bb8 {[%clk 0:00:59.3]} 16. a3 {[%clk 0:02:11.9]} 16... Nc2 {[%clk
0:00:52.1]} 17. Rac1 {[%clk 0:02:12.6]} 17... N2d4 {[%clk 0:00:53.7]} 18. Nbxd4
{[%clk 0:02:11.7]} 18... exd4 {[%clk 0:00:55.6]} 19. Bd5 {[%clk 0:02:07.4]}
19... Be5 {[%clk 0:00:56.3]} 20. Nxe5 {[%clk 0:01:56.1]} 20... fxe5 {[%clk
0:00:56.5]} 21. f4 {[%clk 0:01:53.9]} 21... Rd8 {[%clk 0:00:28.3]} 22. f5 {[%clk
0:01:42.1]} 22... Rc8 {[%clk 0:00:24.6]} 23. Be1 {[%clk 0:01:41.5]} 23... Ke7
{[%clk 0:00:22]} 24. Bg3 {[%clk 0:01:35.8]} 24... Kd6 {[%clk 0:00:23]} 25. Bxc6
{[%clk 0:01:33.6]} 25... Rxc6 {[%clk 0:00:24.5]} 26. Rxd4+ {[%clk 0:01:32.4]}
26... Ke7 {[%clk 0:00:26.1]} 27. Rxc6 {[%clk 0:01:31.7]} 27... Bxc6 {[%clk
0:00:28]} 28. Bxe5 {[%clk 0:01:32.4]} 28... Rd8 {[%clk 0:00:29.7]} 29. f6+
{[%clk 0:01:26.8]} 29... gxf6 {[%clk 0:00:31.6]} 30. Bxf6+ {[%clk 0:01:27.9]}
30... Ke6 {[%clk 0:00:33.4]} 1-0

[Event "*** Titled Tuesday Blitz"]
[Site "Chess.com"]
[Date "2019.03.05"]
[Round "6"]
[White "jocmil"]
[Black "W_Amadeus"]
[Result "0-1"]
[WhiteElo "2426"]
[BlackElo "2631"]
[TimeControl "180+2"]
[EndTime "14:24:14 PST"]
[Termination "W_Amadeus won by resignation"]

1. b3 {[%clk 0:03:01.9]} 1... d6 {[%clk 0:03:01.9]} 2. Bb2 {[%clk 0:03:01.5]}
2... e5 {[%clk 0:03:02.7]} 3. g3 {[%clk 0:03:00.7]} 3... g6 {[%clk 0:03:02.8]}
4. Bg2 {[%clk 0:03:02]} 4... Bg7 {[%clk 0:03:04.4]} 5. e3 {[%clk 0:03:02.9]}
5... Ne7 {[%clk 0:03:05.6]} 6. Ne2 {[%clk 0:03:04.3]} 6... O-O {[%clk
0:03:06.9]} 7. O-O {[%clk 0:03:05.7]} 7... d5 {[%clk 0:03:03.9]} 8. f4 {[%clk
0:03:00.4]} 8... Nbc6 {[%clk 0:03:03]} 9. fxe5 {[%clk 0:02:54.9]} 9... Nxe5
{[%clk 0:03:02.8]} 10. Nbc3 {[%clk 0:02:55.7]} 10... c5 {[%clk 0:02:56]} 11. Nf4
{[%clk 0:02:52.5]} 11... d4 {[%clk 0:02:56.5]} 12. exd4 {[%clk 0:02:51.5]} 12...
cxd4 {[%clk 0:02:56.6]} 13. Ne4 {[%clk 0:02:52.4]} 13... Bg4 {[%clk 0:02:47.2]}
14. Qe1 {[%clk 0:02:52.4]} 14... Rc8 {[%clk 0:02:47.9]} 15. Rc1 {[%clk
0:02:48.3]} 15... Re8 {[%clk 0:02:30.8]} 16. Qf2 {[%clk 0:02:46.8]} 16... Bf5
{[%clk 0:02:18.7]} 17. d3 {[%clk 0:02:36.9]} 17... Ng4 {[%clk 0:02:13.5]} 18.
Qf3 {[%clk 0:02:33.5]} 18... Ne3 {[%clk 0:02:14.5]} 19. Nf2 {[%clk 0:02:08.5]}
19... Nxf1 {[%clk 0:02:09.1]} 20. Kxf1 {[%clk 0:02:08.5]} 20... Nc6 {[%clk
0:02:07.3]} 21. g4 {[%clk 0:02:03.9]} 21... Bd7 {[%clk 0:02:01.2]} 22. Ne4
{[%clk 0:01:43.8]} 22... Ne5 {[%clk 0:02:00.6]} 23. Qg3 {[%clk 0:01:42.1]} 23...
Nxg4 {[%clk 0:02:00.3]} 24. Bh3 {[%clk 0:01:25.9]} 24... Ne3+ {[%clk 0:01:55]}
25. Kg1 {[%clk 0:01:26]} 25... Bxh3 {[%clk 0:01:52.2]} 26. Qxh3 {[%clk
0:01:27.9]} 26... Rxc2 {[%clk 0:01:45.4]} 27. Rxc2 {[%clk 0:01:23.6]} 27... Nxc2
{[%clk 0:01:47.3]} 28. Qg3 {[%clk 0:00:58.9]} 28... Nb4 {[%clk 0:01:22.5]} 29.
Qg2 {[%clk 0:00:35.8]} 29... Rxe4 {[%clk 0:01:04]} 30. dxe4 {[%clk 0:00:35.5]}
30... d3 {[%clk 0:01:05.6]} 31. Bxg7 {[%clk 0:00:36.3]} 31... d2 {[%clk
0:01:05.4]} 0-1

[Event "*** Titled Tuesday Blitz"]
[Site "Chess.com"]
[Date "2019.03.05"]
[Round "6"]
[White "NeverEverForever1990"]
[Black "jbj"]
[Result "0-1"]
[WhiteElo "2360"]
[BlackElo "2592"]
[TimeControl "180+2"]
[EndTime "14:24:14 PST"]
[Termination "jbj won by resignation"]

1. d4 {[%clk 0:03:01.1]} 1... Nf6 {[%clk 0:03:00.7]} 2. c4 {[%clk 0:02:53.6]}
2... e6 {[%clk 0:03:01.8]} 3. Nf3 {[%clk 0:02:53.7]} 3... b6 {[%clk 0:03:02]} 4.
g3 {[%clk 0:02:52.7]} 4... Bb7 {[%clk 0:03:03]} 5. Bg2 {[%clk 0:02:53.6]} 5...
Bb4+ {[%clk 0:03:04.1]} 6. Nbd2 {[%clk 0:02:49.2]} 6... O-O {[%clk 0:03:04.6]}
7. O-O {[%clk 0:02:50.1]} 7... a5 {[%clk 0:03:01.7]} 8. a3 {[%clk 0:02:36.8]}
8... Bxd2 {[%clk 0:03:02.4]} 9. Qxd2 {[%clk 0:02:35.4]} 9... d6 {[%clk
0:03:01.4]} 10. b3 {[%clk 0:02:34.1]} 10... Nbd7 {[%clk 0:03:02.2]} 11. Bb2
{[%clk 0:02:31.9]} 11... Ne4 {[%clk 0:03:02.6]} 12. Qe3 {[%clk 0:02:23]} 12...
Qc8 {[%clk 0:02:58.6]} 13. Rfd1 {[%clk 0:02:19.9]} 13... Ndf6 {[%clk 0:02:58]}
14. Ne1 {[%clk 0:02:04.9]} 14... d5 {[%clk 0:02:53.5]} 15. Nd3 {[%clk
0:01:45.2]} 15... dxc4 {[%clk 0:02:49.4]} 16. bxc4 {[%clk 0:01:45.4]} 16... Nd6
{[%clk 0:02:50.7]} 17. Bxb7 {[%clk 0:01:42.6]} 17... Qxb7 {[%clk 0:02:51.5]} 18.
c5 {[%clk 0:01:28.6]} 18... Nc4 {[%clk 0:02:47.4]} 19. Qc1 {[%clk 0:01:29.1]}
19... Nxb2 {[%clk 0:02:47.2]} 20. Qxb2 {[%clk 0:01:29.1]} 20... Rab8 {[%clk
0:02:38.9]} 21. cxb6 {[%clk 0:01:14.2]} 21... cxb6 {[%clk 0:02:37.9]} 22. Qb5
{[%clk 0:01:15.2]} 22... Rfd8 {[%clk 0:02:29.2]} 23. Ne5 {[%clk 0:01:03.2]}
23... Rd5 {[%clk 0:02:23.7]} 24. Qc6 {[%clk 0:01:01.9]} 24... Qa6 {[%clk
0:02:15.3]} 25. Qc7 {[%clk 0:00:44.9]} 25... Rf8 {[%clk 0:02:16.1]} 26. Nc6
{[%clk 0:00:42.3]} 26... Rd7 {[%clk 0:02:15.1]} 27. Qe5 {[%clk 0:00:38.3]} 27...
h5 {[%clk 0:02:14.9]} 28. Rac1 {[%clk 0:00:33.2]} 28... Qb7 {[%clk 0:02:10.9]}
29. Qf4 {[%clk 0:00:22.7]} 29... Rc8 {[%clk 0:02:05.7]} 30. Ne5 {[%clk
0:00:23.2]} 30... Rdc7 {[%clk 0:02:06.7]} 31. Rxc7 {[%clk 0:00:23.6]} 31... Qxc7
{[%clk 0:02:07.7]} 32. e4 {[%clk 0:00:21.4]} 32... Qc2 {[%clk 0:02:05.8]} 33.
Rd3 {[%clk 0:00:20.3]} 33... Qc1+ {[%clk 0:01:59.2]} 34. Qxc1 {[%clk 0:00:18.9]}
34... Rxc1+ {[%clk 0:02:01.1]} 35. Kg2 {[%clk 0:00:20.4]} 35... Nxe4 {[%clk
0:02:02.5]} 36. Rb3 {[%clk 0:00:21.5]} 36... Rc2 {[%clk 0:01:58.8]} 37. Kf3
{[%clk 0:00:16.7]} 37... Nd2+ {[%clk 0:01:55.8]} 0-1